Cogmind - Beta 16 --- EXPLORER MODE // 2026.01.22 @ 15:39:38 Player: K.K.Y. Result: Destroyed by P-70 Sage with High-powered Shock Rifle Performance ------------- Evolutions (5) 2500 Regions Visited (15) 3000 Robots Destroyed (390) 1950 Value Destroyed (19222) 19222 Prototype IDs (53) 1060 Alien Tech Used (1) 200 Bonus (5782) 5782 TOTAL SCORE: 33714 Bonus ------- High Alert Combat Kills 393 Follower Combat Kills 1886 Network Hubs Disabled 800 Delivered SUBCON Basin 2000 Met Zhirov 300 Built Enhanced Grunts 300 Met R17 at Cetus 500 Friendly Fire -397 Cogmind --------- Core Integrity 0/1000 Matter 265/300 Energy 720/720 System Corruption 0% Temperature Cool (0) Movement Treading (163) Location -4/Proximity Caves Parts ------- > --- POWER (2) -------- Light Angular Momentum Engine Light Antimatter Reactor > --- PROPULSION (5) --- Armored Medium Treads Centrium Heavy Treads Centrium Heavy Treads > --- UTILITY (9) ------ Advanced Power Amplifier Experimental Heat Sink Huge Storage Unit Advanced Energy Well Advanced Sensor Array Advanced Signal Interpreter Advanced Terrain Scanner Experimental Core Shielding Splice Drone Bay (6/6) > --- WEAPON (2) ------- Hypervelocity Gauss Rifle Power Sword > --- INVENTORY (25) --- Advanced Heat Sink Advanced Heat Sink Improved Matter Compressor Advanced Particle Charger Advanced Transmission Jammer Advanced ECM Suite Experimental EM Shield Advanced Hacking Suite Advanced Hacking Suite Advanced System Shield Authchip [Propulsion] Authchip [Processor] Improved Component Analysis Suite Dynamic Insulation System Improved Corruption Screen Improved System Restoration Module Transdimensional Reconstructor EMDS Improved Plasma Cutter Multitool Molecular Deconstructor Shock Maul Peak State ------------ > --- POWER ------------ Quantum Reactor Quantum Reactor > --- PROPULSION ------- Armored Medium Treads Centrium Heavy Treads Centrium Heavy Treads > --- UTILITY ---------- Experimental Heat Sink Huge Storage Unit Advanced Particle Charger Centrium Medium Armor Plating Improved Powered Armor Experimental Thermal Shield Experimental EM Shield Dynamic Insulation System Corruption Screen > --- WEAPON ----------- Neutron Cannon Neutron Cannon > --- INVENTORY -------- Improved Deuterium Engine Quantum Reactor Power Amplifier Advanced Power Amplifier Advanced Signal Interpreter Advanced Terrain Scanner Weapon Mount Advanced ECM Suite Experimental Phase Shifter Thermal Defense Suite Improved Hacking Suite Improved Hacking Suite Advanced System Shield Authchip [Propulsion] Authchip [Processor] Tech Extrapolator Splice Drone Bay EMDS Mini Assault Cannon Advanced Datajack Improved Plasma Cutter Multitool Shock Maul Power Sword [Rating: 145] Favorites ----------- Power Quantum Reactor Engine F-cell Engine Power Core Light Neutrino Core Reactor Quantum Reactor Propulsion Centrium Heavy Treads Treads Centrium Heavy Treads Leg Cargo Legs Wheel Armored Huge Wheel Hover Unit Improved Antigrav System Utility Huge Storage Unit Device Advanced Heat Sink Storage Huge Storage Unit Processor Advanced Signal Interpreter Hackware Improved Hacking Suite Protection Centrium Medium Armor Plating Weapon Beam Cannon Energy Gun Improved Lightning Gun Energy Cannon Beam Cannon Ballistic Gun Improved Heavy Machine Gun Ballistic Cannon Enhanced Gauss Cannon Launcher Heavy Proton Missile Launcher Special Weapon Mining Laser Impact Weapon Shock Maul Slashing Weapon Power Sword Build | -11 -10 -10 -10 -8 -8 -6 -6 -6 -6 -6 -5 -5 -5 -5 -4 ------- Run | Yrd Mat Min Sub Rec Scr Fac Ext Cet Arc Hub Fac Upp Upp Zhi Pro Slots Evolved 11 | . 1 . . . . 8 . . . . 2 . . . . Power 1 | . . . . . . 1 . . . . . . . . . Propulsion 3 | . . . . . . 2 . . . . 1 . . . . Utility 7 | . 1 . . . . 5 . . . . 1 . . . . Weapon . | . . . . . . . . . . . . . . . . Parts Attached 214 | 5 10 2 12 1 6 78 . 10 . 15 58 5 4 6 2 Power 28 | 1 . . 3 . 1 11 . 1 . 2 7 . 1 . 1 Engine 14 | 1 . . 3 . 1 5 . . . . 3 . 1 . . Core 6 | . . . . . . 3 . . . . 3 . . . . Reactor 8 | . . . . . . 3 . 1 . 2 1 . . . 1 Propulsion 36 | 1 4 . 2 . 2 18 . 3 . 1 4 . . 1 . Treads 23 | 1 4 . 1 . 2 9 . 2 . . 4 . . . . Leg 5 | . . . 1 . . 1 . 1 . 1 . . . 1 . Wheel 2 | . . . . . . 2 . . . . . . . . . Hover 6 | . . . . . . 6 . . . . . . . . . Flight . | . . . . . . . . . . . . . . . . Utility 99 | 1 4 1 2 1 2 32 . 3 . 11 35 2 3 2 . Device 65 | . 2 1 1 . 2 22 . 1 . 10 22 1 3 . . Storage 7 | 1 1 . 1 1 . . . . . . 2 . . 1 . Processor 5 | . . . . . . . . . . 1 3 1 . . . Hackware 6 | . . . . . . 5 . . . . 1 . . . . Protection 16 | . 1 . . . . 5 . 2 . . 7 . . 1 . Artifact . | . . . . . . . . . . . . . . . . Weapon 51 | 2 2 1 5 . 1 17 . 3 . 1 12 3 . 3 1 Energy Gun 7 | 2 . . . . . 1 . . . . 3 1 . . . Energy Cannon 16 | . 2 1 3 . 1 4 . 2 . 1 1 1 . . . Ballistic Gun 6 | . . . . . . 3 . 1 . . 1 . . 1 . Ballistic Cannon 14 | . . . . . . 6 . . . . 7 1 . . . Launcher 2 | . . . . . . 2 . . . . . . . . . Special Weapon 3 | . . . 1 . . . . . . . . . . 2 . Impact Weapon 2 | . . . 1 . . 1 . . . . . . . . . Slashing Weapon 1 | . . . . . . . . . . . . . . . 1 Piercing Weapon . | . . . . . . . . . . . . . . . . Special Melee Weapon . | . . . . . . . . . . . . . . . . Unidentified Prototypes 29 | . . 1 . . . 10 . 6 . 4 4 . . 4 . Parts Lost 59 | . . . 3 . . 21 . . . 7 19 . 9 . . Power 12 | . . . 2 . . 4 . . . 1 3 . 2 . . Propulsion 8 | . . . . . . 5 . . . . 3 . . . . Utility 29 | . . . . . . 10 . . . 5 9 . 5 . . Weapon 10 | . . . 1 . . 2 . . . 1 4 . 2 . . Highest Loss Streak 9 | . . . 1 . . 3 . . . 2 2 . 9 . . To Critical Strikes . | . . . . . . . . . . . . . . . . Average Backups 21 | 1 8 10 9 11 22 24 24 24 24 24 23 24 23 21 23 Power . | . . . . . 1 1 . . . . . . . . . Propulsion . | . 1 1 . . . . . . . . . . . 1 . Utility 13 | . 2 3 6 7 12 13 16 16 17 16 16 18 17 15 16 Weapon 4 | . 4 5 2 2 7 7 5 5 4 4 4 4 3 3 2 Tool/Special . | . . . . . . . . . . . . . . . . Unused Backups 53 | . . . 3 . 2 20 . . 4 . 9 . . . 15 Power 4 | . . . . . . 4 . . . . . . . . . Propulsion 1 | . . . 1 . . . . . . . . . . . . Utility 24 | . . . . . 1 6 . . 1 . 4 . . . 12 Weapon 20 | . . . 2 . 1 10 . . 2 . 3 . . . 2 Tool/Special 4 | . . . . . . . . . 1 . 2 . . . 1 Average Slot Usage (%) 84 | . 83 99 80 80 86 90 81 80 81 82 81 88 82 64 78 Engine 5 | . 12 12 9 10 10 6 . . . . 3 5 4 5 5 Core 1 | . . . . . . 1 . . . . 2 5 4 . . Reactor 3 | . . . . . . 3 12 12 12 11 4 . . . 4 Treads 11 | . 24 25 1 . 8 10 12 11 12 12 11 16 15 11 11 Leg 1 | . . . 9 10 6 . . . . . . . . . . Hover 1 | . . . . . . 7 . . . . . . . . . Device 26 | . 7 24 29 30 28 25 31 25 25 26 28 19 19 27 27 Storage 6 | . 12 12 10 10 10 6 6 6 6 6 5 5 5 8 11 Processor 2 | . . . . . . . . . . 2 5 7 10 5 5 Hackware 2 | . . . . . . 6 . . . . 3 5 4 . . Protection 5 | . 1 . . . . 6 6 11 12 8 5 11 6 2 5 Energy Gun 1 | . 5 . . . . 1 . . . . . 1 4 . . Energy Cannon 6 | . 19 25 13 20 21 3 6 6 6 8 3 5 4 . . Ballistic Gun 1 | . . . . . . 1 . 5 6 3 . . . 1 5 Ballistic Cannon 2 | . . . . . . 4 . . . . 4 3 . . . Peak Build Rating 145 | 5 9 15 46 46 40 94 94 122 122 136 145 128 129 120 133 Average Rating 89 | 4 7 9 30 33 36 76 94 109 121 125 114 128 121 104 122 On Entrance 72 | . 5 9 9 46 30 35 94 94 122 122 129 128 128 90 120 Avg Prop Armor Cover (%) 9 | . 11 . . . . 9 . . . . . . 6 . . Naked Turns . | . . . . . . . . . . . . . . . . Heaviest Build 173 | 15 23 21 92 92 104 173 139 156 156 156 168 143 136 114 127 Greatest Support 187 | 20 40 40 55 55 60 140 140 160 160 160 187 187 187 160 187 Greatest Overweight (x) 12 | . 3 . 6 1 1 12 . 1 . 1 1 . . 3 . Average Overweight (x) . | . . . . . . 1 . . . . . . . . . Largest Inventory Capacity 25 | 10 10 10 25 25 25 25 25 25 25 25 25 25 25 25 25 Average Capacity 22 | 9 10 10 11 17 23 24 25 25 25 25 25 25 25 25 25 Most Carried 25 | 3 10 10 24 25 25 25 25 25 25 25 25 25 25 25 25 Average Carried 22 | 1 8 9 11 15 22 24 25 24 24 24 24 24 24 22 24 Final Capacity 25 | 10 10 10 25 20 25 25 25 25 25 25 25 25 25 25 25 Final Carried 25 | 3 10 10 24 15 25 25 25 25 25 25 25 25 22 23 24 Class Distribution -------------------- 65% | Hacker-Mutant 19% | Scavenger-Mutant 8% | Hacker-Skirmisher 5% | Scavenger-Skirmisher Dominant Class ---------------- Hacker-Mutant | -10/Materials Hacker-Mutant | -10/Mines Scavenger-Skirmisher | -10/Subcaves Hacker-Skirmisher | -8/Recycling Hacker-Skirmisher | -8/Scraptown Hacker-Mutant | -6/Factory Hacker-Mutant | -6/Extension Scavenger-Mutant | -6/Cetus Scavenger-Mutant | -6/Archives Scavenger-Mutant | -6/Hub_04(d) Hacker-Mutant | -5/Factory Hacker-Mutant | -5/Upper Caves Hacker-Mutant | -5/Upper Caves Hacker-Mutant | -5/Zhirov Hacker-Mutant | -4/Proximity Caves Resources | -11 -10 -10 -10 -8 -8 -6 -6 -6 -6 -6 -5 -5 -5 -5 -4 ----------- Run | Yrd Mat Min Sub Rec Scr Fac Ext Cet Arc Hub Fac Upp Upp Zhi Pro Matter Collected 8453 | 250 192 20 150 20 70 2549 271 152 56 679 3393 183 138 130 200 Remotely 92 | . . . . . . . . . . . 92 . . . . Salvage Created 16090 | 145 621 25 406 170 . 4386 483 324 193 2584 5670 297 382 130 274 Parts 732 | 11 36 5 23 8 . 179 22 8 14 134 265 8 9 . 10 Haulers Intercepted 4 | . 2 . . . . 1 . . . . 1 . . . . Recyclers Shooed 12 | . . . . . . 9 . . . . 3 . . . . Parts Field Recycled . | . . . . . . . . . . . . . . . . Retrieved Matter . | . . . . . . . . . . . . . . . . Parts Self-Destructed . | . . . . . . . . . . . . . . . . Prevented . | . . . . . . . . . . . . . . . . Parts Restored . | . . . . . . . . . . . . . . . . Kills | -11 -10 -10 -10 -8 -8 -6 -6 -6 -6 -6 -5 -5 -5 -5 -4 ------- Run | Yrd Mat Min Sub Rec Scr Fac Ext Cet Arc Hub Fac Upp Upp Zhi Pro Combat Hostiles Destroyed 308 | . 7 2 11 3 . 94 5 5 2 41 121 7 8 . 2 Guns 57 | . . . . . . 17 . 3 1 11 19 . 4 . 2 Cannons 223 | . 7 2 11 3 . 66 4 1 1 23 95 7 3 . . AOE 15 | . . . . . . 4 . . . 5 6 . . . . Classes Destroyed 21 | 2 6 . 4 1 . 6 . . . 2 . . . . . Worker 14 | . 1 . . . . 4 . . . 7 2 . . . . Builder 6 | . 3 . . . . . 1 . . 1 1 . . . . Tunneler 5 | 4 . . . . . 1 . . . . . . . . . Hauler 4 | . 2 . . . . 1 . . . . 1 . . . . Recycler 9 | 1 3 . . . . 4 . . . . 1 . . . . Mechanic 2 | . . . . . . . . . . 1 1 . . . . Operator 12 | . . . . . . 2 2 . 2 3 3 . . . . Turret 2 | . . . 2 . . . . . . . . . . . . Watcher 25 | . 3 . . . . 7 2 . . 3 10 . . . . Swarmer 34 | . 4 2 6 . . 8 . . . 2 9 1 2 . . Grunt 111 | . 3 . . . . 37 3 1 . 15 44 4 2 . 2 Brawler 11 | . . . . . . 5 . . . . 5 . 1 . . Duelist 12 | . . . . . . 4 . . . 3 2 1 2 . . Protector 4 | . . . . . . . . . . 4 . . . . . Sentry 35 | . . . . 3 . 12 2 . 2 4 11 1 . . . Hunter 12 | . . . . . . 6 . . . 1 4 . 1 . . Programmer 70 | . . . . . . 21 . . . 3 46 . . . . Behemoth 1 | . . . . . . 1 . . . . . . . . . Cetus Guard 4 | . . . . . . . . 4 . . . . . . . Lightning 9 | . . . . . . . . . . 9 . . . . . Artisan 2 | . . . 2 . . . . . . . . . . . . Subdweller 5 | . . . 5 . . . . . . . . . . . . Zionite 2 | . . . 2 . . . . . . . . . . . . Butcher 1 | . . . . . . . 1 . . . . . . . . Best Kill Streak 9 | 3 3 2 4 1 . 9 2 2 2 7 7 4 7 . 1 Combat Bots Only 7 | . 2 2 4 1 . 4 2 2 1 4 7 4 7 . 1 Max Kills in Single Turn 9 | 1 1 1 1 1 . 9 1 1 1 5 2 1 1 . 1 Gunslinging . | . . . . . . . . . . . . . . . . Exploded 2 | . . . . . . 2 . . . 2 2 . . . . Melee . | . . . . . . . . . . . . . . . . Uniques/NPCs Destroyed . | . . . . . . . . . . . . . . . . Combat | -11 -10 -10 -10 -8 -8 -6 -6 -6 -6 -6 -5 -5 -5 -5 -4 -------- Run | Yrd Mat Min Sub Rec Scr Fac Ext Cet Arc Hub Fac Upp Upp Zhi Pro Hostile Shots Fired 2762 | . 16 . 100 10 . 857 34 20 10 526 811 45 302 . 31 Missed 855 | . 5 . 35 6 . 308 8 9 3 124 237 15 92 . 13 Hits 1907 | . 11 . 65 4 . 549 26 11 7 402 574 30 210 . 18 Melee 47 | . . . . . . 15 . . . 4 20 . 8 . . Projectile 1860 | . 11 . 65 4 . 534 26 11 7 398 554 30 202 . 18 AOE 2 | . . . . . . 1 . . . 1 . . . . . Critical Strikes 79 | . . . . 1 . 14 1 4 . 14 26 . 16 . 3 Part Disruptions 4 | . . . . . . 2 . . . . 1 . . . 1 Actively Blocked 1 | . . . . . . . . . . . 1 . . . . Damage Taken 17891 | . 72 . 619 36 . 4349 196 180 114 2781 6245 383 2699 . 217 Core 1711 | . 40 . 80 18 . 347 20 . 12 190 690 37 263 . 14 Absorbed by Shields 364 | . . . . . . 223 . 106 . . . . 35 . . Reduced by Siege Mode 6 | . . . . . . . . . . 6 . . . . . Redirected to Shielding 8 | . . . . . . . . . . . . . . . 8 Ignored by Resistances 22268 | . 47 . 360 22 . 3456 123 176 108 10232 5787 225 1602 . 130 Regen/Repaired (Parts) 2210 | . . . . . . 851 . . . . 1359 . . . . Core Remaining (%) 59 | 100 . . . . 44 . . . . 33 . . . . . Volleys Fired 1161 | 10 42 2 72 8 . 308 49 18 12 151 411 18 22 14 24 Largest 2 | 2 2 2 2 2 . 2 1 2 2 2 2 2 2 1 2 Hottest 272 | 80 120 120 160 120 . 175 90 165 125 180 272 137 179 30 53 Shots Fired 2050 | 20 80 4 129 16 . 550 49 35 19 299 730 36 44 14 25 Gun 517 | 20 10 . . . . 180 . 10 12 111 128 . 22 . 24 Cannon 1486 | . 70 4 98 16 . 369 49 25 7 188 602 36 22 . . Launcher 1 | . . . . . . 1 . . . . . . . . . Special 46 | . . . 31 . . . . . . . . . . 14 1 Kinetic 932 | . . . . . . 327 . 10 12 111 421 18 9 . 24 Thermal 1032 | 20 80 4 129 16 . 144 49 18 7 188 309 18 35 14 1 Explosive . | . . . . . . . . . . . . . . . . Electromagnetic 86 | . . . . . . 79 . 7 . . . . . . . Robot Hit Streak 70 | 10 31 33 43 17 . 49 8 20 18 27 70 29 45 6 10 Robot Miss Streak 4 | 1 3 . 1 1 . 3 1 2 . 4 4 1 1 1 1 Penetration Max 1 | . . . . . . . . 1 1 1 1 . . . 1 Secondary Targets . | . . . . . . . . . . . . . . . . Shots Hit Robots 1521 | 18 64 2 62 14 . 466 27 30 18 201 520 32 37 12 18 Core Hits 820 | 6 21 2 23 6 . 352 15 10 7 107 226 10 11 13 11 Critical Kills 17 | . . . . . . 3 1 2 1 5 1 . . . 4 Critical Parts Destroyed 17 | . . . . . . . . . 2 9 6 . . . . Critical Strikes 81 | . . . . . . 10 1 2 3 15 40 2 4 . 4 Burn 2 | . . . . . . . . . . . . . 2 . . Meltdown 4 | . . . . . . 3 1 . . . . . . . . Destroy 32 | . . . . . . . . 2 3 15 8 . . . 4 Blast 42 | . . . . . . 6 . . . . 32 2 2 . . Corrupt 1 | . . . . . . 1 . . . . . . . . . Melee Attacks 26 | . . . 25 . . . . . . . . . . . 1 Impact 25 | . . . 25 . . . . . . . . . . . . Slashing 1 | . . . . . . . . . . . . . . . 1 Piercing . | . . . . . . . . . . . . . . . . Sneak Attacks . | . . . . . . . . . . . . . . . . Combat Hostiles . | . . . . . . . . . . . . . . . . Follow-up Attacks . | . . . . . . . . . . . . . . . . Damage Inflicted 51895 | 198 1099 35 1001 245 . 15102 864 936 621 9288 20145 1023 1102 101 135 Guns 10957 | 198 77 . . . . 3545 . 265 355 2402 3447 . 533 . 135 Cannons 35779 | . 1022 35 929 245 . 9863 864 671 266 5164 15128 1023 569 . . Explosions 4848 | . . . . . . 1640 . . . 1712 1496 . . . . Melee . | . . . . . . . . . . . . . . . . Ramming 153 | . . . . . . 54 . . . 10 74 . . 15 . Kinetic 21960 | . . . . . . 8273 . 265 355 2402 9756 504 270 . 135 Thermal 26374 | 198 1099 35 1001 245 . 5100 864 484 266 5830 9815 519 832 86 . Explosive 472 | . . . . . . . . . . . 472 . . . . Electromagnetic 2936 | . . . . . . 1675 . 187 . 1046 28 . . . . Impact . | . . . . . . . . . . . . . . . . Slashing . | . . . . . . . . . . . . . . . . Piercing . | . . . . . . . . . . . . . . . . Highest Corruption 13 | . . . . . . 2 . . . 13 3 . . . . Average Corruption 1 | . . . . . . 1 . . . 5 1 . . . . Corruption Purged 42 | . . . . . . 12 . . . 16 14 . . . . Corruption Blocked 2 | . . . . . . . . . . 2 . . . . . Effects 39 | . . . . . . 14 . . . 12 13 . . . . Message Errors 11 | . . . . . . 5 . . . 1 5 . . . . Matter Fused 9 | . . . . . . 4 . . . 4 1 . . . . Heat Flow Errors 5 | . . . . . . 2 . . . 2 1 . . . . Energy Discharges 5 | . . . . . . 1 . . . 2 2 . . . . Parts Rejected 3 | . . . . . . 2 . . . 1 . . . . . Parts Fused 1 | . . . . . . . . . . . 1 . . . . Data Loss (minor) 3 | . . . . . . . . . . 1 2 . . . . Data Loss (major) 1 | . . . . . . . . . . . 1 . . . . Misfires 1 | . . . . . . . . . . 1 . . . . . Overload Shots 40 | . . . . . . . . . . . 40 . . . . Effects 2 | . . . . . . . . . . . 2 . . . . Energy Bleed 1 | . . . . . . . . . . . 1 . . . . Heat Surge 1 | . . . . . . . . . . . 1 . . . . Overflow Damage 1267 | . 22 . 4 . . 376 3 . . 154 613 47 39 9 . Projectiles 892 | . 22 . 4 . . 200 3 . . 97 480 47 39 . . Explosions 365 | . . . . . . 176 . . . 57 132 . . . . Melee 10 | . . . . . . . . . . . 1 . . 9 . Knockbacks 199 | . . . . . . 123 . . . . 74 . 2 . . Impact . | . . . . . . . . . . . . . . . . Kinetic 178 | . . . . . . 109 . . . . 67 . 2 . . Secondary 21 | . . . . . . 14 . . . . 7 . . . . Self-Inflicted Damage 622 | . . . . . . 225 . . . 202 195 . . . . Shots 20 | . . . . . . 7 . . . 5 8 . . . . Rammed 19 | . . . . . . 8 . . . 1 8 . . 2 . Targets Rammed 19 | . . . . . . 8 . . . 1 8 . . 2 . Kicked . | . . . . . . . . . . . . . . . . Crushed . | . . . . . . . . . . . . . . . . Highest Temperature 551 | 108 522 102 45 207 . 551 . . . 449 378 135 285 . . Average Temperature 116 | 48 135 53 11 93 . 152 . . . 120 53 59 123 . . Received Heat Transfer 8031 | . 51 . 225 36 . 2050 141 5 18 774 2820 216 1595 . 100 Effects 50 | . 11 . . . . 22 . . . 13 2 . 2 . . Shutdowns 12 | . 2 . . . . 6 . . . 4 . . . . . Energy Bleed 9 | . 1 . . . . 3 . . . 5 . . . . . Interference 14 | . 2 . . . . 8 . . . . 2 . 2 . . Matter Decay 3 | . 2 . . . . . . . . 1 . . . . . Short Circuit 4 | . 1 . . . . 1 . . . 2 . . . . . Damage (minor) 5 | . . . . . . 4 . . . 1 . . . . . Damage (major) 3 | . 3 . . . . . . . . . . . . . . Siege Activations 1 | . . . . . . . . . . 1 . . . . . Total Turns 51 | . . . . . . . . . . 51 . . . . . Longest Duration 51 | . . . . . . . . . . 51 . . . . . Martial Activations . | . . . . . . . . . . . . . . . . Shielding Activations . | . . . . . . . . . . . . . . . . Robots Disrupted 2 | . . . . . . . . . . 1 1 . . . . Combat Hostiles 2 | . . . . . . . . . . 1 1 . . . . Robots Corrupted 7 | . . . . . . 3 . 1 . 2 1 . . . . Combat Hostiles 5 | . . . . . . 2 . 1 . 2 . . . . . Parts Fried 12 | . . . . . . 1 . 3 . 7 . . . . 1 Impact Corruptions 2 | . . . . . . . . . . . 1 . . 1 . Robots Melted 8 | . . . . . . 5 1 . . . 1 . 1 . . Combat Hostiles 8 | . . . . . . 5 1 . . . 1 . 1 . . Parts Melted 38 | 2 6 . 3 2 . 10 4 . . . 5 1 3 . 2 Heat Transferred 21702 | 450 2358 74 2111 518 . 6350 1350 700 . 727 5025 555 1412 72 . Parts Sabotaged . | . . . . . . . . . . . . . . . . Parts Stolen . | . . . . . . . . . . . . . . . . Parts Stripped . | . . . . . . . . . . . . . . . . Power Chain Reactions 14 | . . . . . . 2 . . . 6 6 . . . . Alert | -11 -10 -10 -10 -8 -8 -6 -6 -6 -6 -6 -5 -5 -5 -5 -4 ------- Run | Yrd Mat Min Sub Rec Scr Fac Ext Cet Arc Hub Fac Upp Upp Zhi Pro Maximum Alert Level 2 | . . . . . . . . . . 2 . . . . . Low Security (%) 94 | 100 100 100 . 100 . 100 100 100 100 44 100 . . . . Level 1 2 | . . . . . . . . . . 25 . . . . . Level 2 3 | . . . . . . . . . . 29 . . . . . Level 3 . | . . . . . . . . . . . . . . . . Level 4 . | . . . . . . . . . . . . . . . . Level 5 . | . . . . . . . . . . . . . . . . High Security . | . . . . . . . . . . . . . . . . Max Security . | . . . . . . . . . . . . . . . . Peak Influence 643 | 10 55 51 . 20 . 176 89 115 106 643 150 . . . . Initial 78 | . . . . . . . . 4 28 . 78 . . . . Average 38 | 2 5 1 . . . 12 27 9 51 253 16 . . . . Influence Increases 12262 | 25 255 51 245 76 . 2976 489 397 121 2894 4233 195 215 . 90 Destroy 0b10 Robot/C 6780 | . 140 40 160 60 . 1880 280 260 80 1120 2420 140 160 . 40 Destroy 0b10 Robot/NC 440 | 25 60 . . . . 95 30 10 10 110 95 . . . 5 Destroy Leader 1612 | . 40 10 10 . . 576 64 20 . 320 552 10 10 . . Allied During Kill 313 | . . 1 . . . . 70 74 22 146 . . . . . Successful Hack 552 | . 14 . . 16 . 121 28 . . 117 256 . . . . Disable Machine 336 | . . . . . . 60 . 4 4 184 84 . . . . Anti-Garrison Action 150 | . . . . . . . . . . 150 . . . . . Destroy Structure 1194 | . 1 . . . . 109 17 29 5 507 526 . . . . Lose Combat Pursuer 885 | . . . 75 . . 135 . . . 240 300 45 45 . 45 Influence Decreases 12262 | 25 255 51 245 76 . 2976 477 309 221 2676 4451 195 215 . 90 Entered New Map 220 | . . . . . . . . 8 72 . 140 . . . . Time Decay 11194 | 25 255 51 235 76 . 2856 437 181 149 2416 4078 195 150 . 90 Lost Part 422 | . . . 10 . . 120 . . . 70 157 . 65 . . Lost Ally 202 | . . . . . . . 40 120 . 40 2 . . . . Purge Threat 224 | . . . . . . . . . . 150 74 . . . . Squads Dispatched 88 | . . . . . . 34 3 . . 17 33 . 1 . . Investigation 13 | . . . . . . 8 1 . . 3 1 . . . . Extermination 49 | . . . . . . 18 . . . 8 23 . . . . Reinforcement 15 | . . . . . . 3 2 . . 3 7 . . . . Assault 4 | . . . . . . . . . . 3 . . 1 . . Garrison 7 | . . . . . . 5 . . . . 2 . . . . Intercept . | . . . . . . . . . . . . . . . . Searches Triggered . | . . . . . . . . . . . . . . . . Unchained Authorized 1 | . . . . . . . . . . . 1 . . . . Construction Impeded 4 | . . . . . . 2 1 . . . 1 . . . . Haulers Reinforced 2 | . . . . . . . . . . . 2 . . . . Active Scanning Responses . | . . . . . . . . . . . . . . . . Cargo Convoy Interrupts . | . . . . . . . . . . . . . . . . Stealth | -11 -10 -10 -10 -8 -8 -6 -6 -6 -6 -6 -5 -5 -5 -5 -4 --------- Run | Yrd Mat Min Sub Rec Scr Fac Ext Cet Arc Hub Fac Upp Upp Zhi Pro Distress Signals 14 | . 1 . . . . 5 1 2 . 3 2 . . . . Communications Jammed . | . . . . . . . . . . . . . . . . Distress Signals . | . . . . . . . . . . . . . . . . Times Spotted 482 | . 10 2 22 3 . 123 15 12 8 82 166 9 18 . 12 Peak Tracking Total 10 | . 3 2 6 1 . 4 3 5 2 10 5 4 8 . 5 Tactical Retreats 45 | . . . 2 . . 8 . . . 11 15 3 3 . 3 Traps | -11 -10 -10 -10 -8 -8 -6 -6 -6 -6 -6 -5 -5 -5 -5 -4 ------- Run | Yrd Mat Min Sub Rec Scr Fac Ext Cet Arc Hub Fac Upp Upp Zhi Pro Traps Triggered 17 | . 1 . 1 . . 7 . . . . 8 . . . . Indirectly . | . . . . . . . . . . . . . . . . Trap Hack Attempts . | . . . . . . . . . . . . . . . . Triggered . | . . . . . . . . . . . . . . . . Disarmed 3 | . . . . . . . . . . . 3 . . . . Reprogrammed . | . . . . . . . . . . . . . . . . Reused . | . . . . . . . . . . . . . . . . Traps Extracted . | . . . . . . . . . . . . . . . . Installed . | . . . . . . . . . . . . . . . . Triggered . | . . . . . . . . . . . . . . . . Machines | -11 -10 -10 -10 -8 -8 -6 -6 -6 -6 -6 -5 -5 -5 -5 -4 ---------- Run | Yrd Mat Min Sub Rec Scr Fac Ext Cet Arc Hub Fac Upp Upp Zhi Pro Machines Disabled 90 | . . . 4 . . 15 . 1 1 47 21 . . . 1 Max in Single Turn 11 | . . . 1 . . 5 . 1 1 11 2 . . . 1 Garrison Access 7 | . . . . . . 3 . . . 1 3 . . . . Network Hub 4 | . . . . . . . . . . 4 . . . . . Machines Repaired . | . . . . . . . . . . . . . . . . Machines Dismantled . | . . . . . . . . . . . . . . . . Machines Sabotaged . | . . . . . . . . . . . . . . . . Overloaded Fab Kills . | . . . . . . . . . . . . . . . . Hacking | -11 -10 -10 -10 -8 -8 -6 -6 -6 -6 -6 -5 -5 -5 -5 -4 --------- Run | Yrd Mat Min Sub Rec Scr Fac Ext Cet Arc Hub Fac Upp Upp Zhi Pro Machines Accessed 136 | . 8 1 3 11 . 36 15 . . 15 35 1 1 9 1 Terminals 70 | . 7 . . 6 . 15 14 . . 14 13 . . . 1 Fabricators 8 | . . . . . . 4 . . . . 4 . . . . Repair Stations 9 | . . . . . . 3 . . . . 6 . . . . Recycling Units 19 | . 1 . . 5 . 7 1 . . . 5 . . . . Scanalyzers 8 | . . . . . . 4 . . . . 4 . . . . Garrison Access 7 | . . . . . . 3 . . . 1 3 . . . . Total Hacks 492 | . 15 1 4 23 . 118 30 . . 33 217 1 1 48 1 Successful 362 | . 10 1 4 19 . 85 17 . . 21 154 1 1 48 1 Failed 130 | . 5 . . 4 . 33 13 . . 12 63 . . . . Catastrophic 1 | . . . . . . . . . . . 1 . . . . Database Lockouts . | . . . . . . . . . . . . . . . . Manual 106 | . 9 . . 12 . 28 7 1 . 20 28 . . . 1 Terminals 198 | . 12 . . 9 . 51 27 . . 31 67 . . . 1 Fabricators 30 | . . . . . . 11 . . . . 19 . . . . Repair Stations 39 | . . . . . . 17 . . . . 22 . . . . Recycling Units 37 | . 3 . . 14 . 8 3 . . . 9 . . . . Scanalyzers 120 | . . . . . . 26 . . . . 94 . . . . Garrison Access 13 | . . . . . . 5 . . . 2 6 . . . . Terminal Hacks 124 | . 1 1 4 2 . 12 12 . . 8 33 1 1 48 1 Record 43 | . . . 1 . . . . . . 1 4 . . 36 1 Part Schematic 32 | . . . . 1 . 12 2 . . 4 9 . . 4 . Robot Schematic 3 | . . . . 1 . . 1 . . 1 . . . . . Robot Analysis 10 | . . . . . . . . . . . 6 . . 4 . Prototype ID Bank 4 | . . . . . . . . . . . . . . 4 . Open Door 12 | . . 1 1 . . . 8 . . . . 1 1 . . Level Access Points 1 | . . . . . . . . . . . 1 . . . . Terminal Index 1 | . . . . . . . . . . . 1 . . . . Scanalyzer Index 1 | . . . . . . . . . . . 1 . . . . Unreport Threat 2 | . . . . . . . . . . 1 1 . . . . Locate Traps 2 | . 1 . . . . . 1 . . . . . . . . Disarm Traps 2 | . . . . . . . . . . . 2 . . . . Dispatch Records 1 | . . . . . . . . . . . 1 . . . . Extermination Status 1 | . . . . . . . . . . . 1 . . . . Intercept Status 1 | . . . . . . . . . . . 1 . . . . Recall Investigation 1 | . . . . . . . . . . . 1 . . . . Recall Extermination 1 | . . . . . . . . . . . 1 . . . . Recall Reinforcements 2 | . . . . . . . . . . . 2 . . . . Recall Assault 1 | . . . . . . . . . . . 1 . . . . Zone Layout 1 | . . . . . . . . . . 1 . . . . . Proto ID Catalog 1 | . . . 1 . . . . . . . . . . . . Release Object 1 | . . . 1 . . . . . . . . . . . . Fabricator Hacks 27 | . . . . . . 10 . . . . 17 . . . . Network Status 1 | . . . . . . . . . . . 1 . . . . Load Schematic 13 | . . . . . . 5 . . . . 8 . . . . Build 13 | . . . . . . 5 . . . . 8 . . . . Repair Station Hacks 30 | . . . . . . 13 . . . . 17 . . . . Scan Component 16 | . . . . . . 7 . . . . 9 . . . . Repair 14 | . . . . . . 6 . . . . 8 . . . . Recycling Unit Hacks 22 | . 2 . . 6 . 8 1 . . . 5 . . . . Retrieve Matter 1 | . . . . . . 1 . . . . . . . . . Retrieve Components 21 | . 2 . . 6 . 7 1 . . . 5 . . . . Scanalyzer 94 | . . . . . . 23 . . . . 71 . . . . Insert Component 37 | . . . . . . 10 . . . . 27 . . . . Analyze 56 | . . . . . . 13 . . . . 43 . . . . Retrieve Study 1 | . . . . . . . . . . . 1 . . . . Garrison Access Hacks 6 | . . . . . . 3 . . . . 3 . . . . Seal Access 6 | . . . . . . 3 . . . . 3 . . . . Unauthorized Hacks 58 | . 7 . . 11 . 16 4 . . 12 8 . . . . Terminals 53 | . 7 . . 6 . 16 4 . . 12 8 . . . . Assimilate 4 | . . . . . . 4 . . . . . . . . . Botnet 49 | . 7 . . 6 . 12 4 . . 12 8 . . . . Fabricators . | . . . . . . . . . . . . . . . . Repair Stations . | . . . . . . . . . . . . . . . . Recycling Units 5 | . . . . 5 . . . . . . . . . . . Reject 5 | . . . . 5 . . . . . . . . . . . Scanalyzers . | . . . . . . . . . . . . . . . . Garrison Access . | . . . . . . . . . . . . . . . . Data Cores Recovered 2 | . . . . . . . 1 . . 1 . . . . . Used . | . . . . . . . . . . . . . . . . Hacking Detections 74 | . 1 . . 6 . 26 9 . . 12 20 . . . . Full Trace Events 12 | . . . . 1 . 6 1 . . 3 1 . . . . Feedback Events . | . . . . . . . . . . . . . . . . Feedback Blocked . | . . . . . . . . . . . . . . . . Robot Schematics Acquired 3 | . . . . 1 . . 1 . . 1 . . . . . Robots Built . | . . . . . . . . . . . . . . . . Authchips . | . . . . . . . . . . . . . . . . Time . | . . . . . . . . . . . . . . . . Total Robot Build Rating . | . . . . . . . . . . . . . . . . Part Schematics Acquired 80 | . . . . 1 . 21 2 . . 4 48 . . 4 . Parts Built 20 | . . . . . . 8 . . . . 12 . . . . Authchips . | . . . . . . . . . . . . . . . . Time 1552 | . . . . . . 391 . . . . 1161 . . . . Total Part Build Rating 113 | . . . . . . 38 . . . . 75 . . . . Part Studies Acquired . | . . . . . . . . . . . . . . . . Parts Repaired 14 | . . . . . . 6 . . . . 8 . . . . Time 606 | . . . . . . 186 . . . . 420 . . . . Parts Recycled . | . . . . . . . . . . . . . . . . Recycled Matter . | . . . . . . . . . . . . . . . . Retrieved Matter . | . . . . . . . . . . . . . . . . Retrieved Components 101 | . 19 . . 9 . 29 10 . . . 34 . . . . Parts Scanalyzed 33 | . . . . . . 9 . . . . 24 . . . . Part Schematics Acquired 33 | . . . . . . 9 . . . . 24 . . . . Parts Damaged 4 | . . . . . . . . . . . 4 . . . . Bothacking | -11 -10 -10 -10 -8 -8 -6 -6 -6 -6 -6 -5 -5 -5 -5 -4 ------------ Run | Yrd Mat Min Sub Rec Scr Fac Ext Cet Arc Hub Fac Upp Upp Zhi Pro Used RIF Installer . | . . . . . . . . . . . . . . . . Robots Hacked . | . . . . . . . . . . . . . . . . Non-combat . | . . . . . . . . . . . . . . . . Combat . | . . . . . . . . . . . . . . . . Robot Hacks Applied . | . . . . . . . . . . . . . . . . Relay Couplers Released 8 | . . . . . . 3 . . . 1 4 . . . . Machine Destruction 1 | . . . . . . . . . . 1 . . . . . Programmers 7 | . . . . . . 3 . . . . 4 . . . . Fabnet Peak Effective % . | . . . . . . . . . . . . . . . . Robots Rewired 1 | . . . . . . . . . . . 1 . . . . Allies Hacked 1 | . . . . . . . . . . . 1 . . . . Hacks Repelled . | . . . . . . . . . . . . . . . . Allies | -11 -10 -10 -10 -8 -8 -6 -6 -6 -6 -6 -5 -5 -5 -5 -4 -------- Run | Yrd Mat Min Sub Rec Scr Fac Ext Cet Arc Hub Fac Upp Upp Zhi Pro Total Allies 27 | . . 5 . . . . 12 5 . . 1 . 2 . 2 Largest Group 11 | . . 5 5 . . . 9 11 4 3 1 . 1 . 1 Highest-Rated Group 763 | . . 85 89 . . . 389 763 431 281 29 . 138 . 58 Highest-Rated Ally 159 | . . 31 31 . . . 159 159 143 96 29 . 138 . 58 Total Orders 4 | . . . . . . . . . . . . . . 1 3 ROAM 1 | . . . . . . . . . . . . . . . 1 EXPLORE 1 | . . . . . . . . . . . . . . . 1 RETURN 2 | . . . . . . . . . . . . . . 1 1 Ally Attacks 318 | . . 1 53 . . . 60 70 17 91 2 . 2 . 22 Total Damage 8005 | . . . 692 . . . 946 2468 607 2986 19 . 22 . 265 Kills 51 | . . . 5 . . . 11 10 2 23 . . . . . Allies Corrupted . | . . . . . . . . . . . . . . . . Allies Melted . | . . . . . . . . . . . . . . . . Intel | -11 -10 -10 -10 -8 -8 -6 -6 -6 -6 -6 -5 -5 -5 -5 -4 ------- Run | Yrd Mat Min Sub Rec Scr Fac Ext Cet Arc Hub Fac Upp Upp Zhi Pro Active Infowar (turns) 25536 | . 676 1256 4152 1803 1133 4043 881 801 225 1928 1949 3562 1345 . 1782 Sensors 16107 | . 676 1251 4152 1803 1131 1224 . . . . 1949 1751 648 . 1522 IFF 2422 | . . . . . . 960 881 581 . . . . . . . Terrain 11297 | . . . 3558 1803 753 245 . . . . . 1811 1345 . 1782 Structural 8910 | . 197 1256 4152 1803 1133 369 . . . . . . . . . Traps 6652 | . . . . . . 2817 881 801 225 1928 . . . . . ECM 2 | . . . . . . 2 . . . . . . . . . Robot Analysis Total 10 | . . . . . . . . . . . 6 . . 4 . Derelict Logs Recovered 4 | . . . 1 . . . . . . . . 1 1 . 1 Drone Launches 25 | . . . . . . . . . . . . . 6 . 19 Drone Recoveries 25 | . . . . . . . . . . . . . . 6 19 Exploration | -11 -10 -10 -10 -8 -8 -6 -6 -6 -6 -6 -5 -5 -5 -5 -4 ------------- Run | Yrd Mat Min Sub Rec Scr Fac Ext Cet Arc Hub Fac Upp Upp Zhi Pro Turns Passed 48406 | 99 1365 1256 4152 1803 1133 11465 881 801 225 3690 14134 3562 1609 420 1811 Spaces Moved 21026 | 48 744 721 1841 1118 553 3975 444 272 117 1837 5461 2065 789 205 836 Core 21 | 18 1 . 2 . . . . . . . . . . . . Treads 16108 | 30 743 721 132 . 156 2301 444 272 117 1837 5461 2065 789 204 836 Legs 3317 | . . . 1707 1118 397 94 . . . . . . . 1 . Wheels 469 | . . . . . . 469 . . . . . . . . . Hover 1111 | . . . . . . 1111 . . . . . . . . . Flight . | . . . . . . . . . . . . . . . . Fastest Speed 50 | 50 160 160 130 130 130 130 160 160 160 160 160 163 160 160 160 Average Speed 181 | 118 160 160 140 143 200 222 160 211 160 160 201 163 162 160 160 Slowest Speed 840 | 160 200 160 350 200 240 840 160 240 160 240 245 163 163 330 163 Overloaded Moves . | . . . . . . . . . . . . . . . . Propulsion Burnouts . | . . . . . . . . . . . . . . . . Robots Hopped . | . . . . . . . . . . . . . . . . Potential Cave-ins 10 | . . . . . . . 8 . . . 2 . . . . Cave-ins Triggered . | . . . . . . . . . . . . . . . . Exploration Rate (%) 75 | 3 74 99 73 99 48 92 61 63 79 98 99 99 74 62 87 Regions Visited 15 Branch Regions 12 Pre-discovered Areas 4 | . . . 1 . . . . . . . . . . 3 . Known Exits Taken 15 | 1 1 1 1 1 1 1 1 1 1 1 1 1 1 1 . Unknown Exits Taken . | . . . . . . . . . . . . . . . . Scrap Searched 32 | . . . 13 . 7 . . . . . . 5 3 . 4 Spaces Dug 114 | . . . 6 . . 6 13 . . 9 80 . . . . Terrain Destroyed 1174 | . . . 6 . . 112 21 2 6 741 272 7 5 . 2 Melee 6 | . . . 6 . . . . . . . . . . . . Projectile 285 | . . . . . . 15 21 2 6 62 167 7 5 . . AOE 881 | . . . . . . 97 . . . 679 105 . . . . Terrain Rammed . | . . . . . . . . . . . . . . . . Walls Destroyed . | . . . . . . . . . . . . . . . . Machines Disabled . | . . . . . . . . . . . . . . . . Actions | -11 -10 -10 -10 -8 -8 -6 -6 -6 -6 -6 -5 -5 -5 -5 -4 --------- Run | Yrd Mat Min Sub Rec Scr Fac Ext Cet Arc Hub Fac Upp Upp Zhi Pro Total 29044 | 70 838 820 3194 1300 582 6094 566 465 139 2253 7856 2226 1079 280 1282 Wait 6127 | . 19 91 1221 164 . 1540 74 149 3 227 1810 135 247 40 407 Move 21011 | 47 743 720 1840 1117 552 3974 443 271 116 1836 5460 2064 788 204 836 Hop . | . . . . . . . . . . . . . . . . Pick Up 172 | 8 15 1 10 7 16 52 . 3 4 10 33 1 4 4 4 Fast Attach 115 | . 3 2 1 . 1 53 . 9 . 4 37 . 2 3 . Attach 89 | 5 4 . 4 . 3 19 . 1 . 11 25 1 9 4 3 Detach 28 | . . . 1 . 1 10 . . . 3 8 . 3 1 1 Swap 80 | . 5 1 10 2 3 31 . 2 . 4 17 4 . . 1 Drop 190 | . 7 3 10 2 6 86 . 12 4 6 44 3 4 1 2 Fire 1161 | 10 42 2 72 8 . 308 49 18 12 151 411 18 22 14 24 Melee 26 | . . . 25 . . . . . . . . . . . 1 Ram 8 | . . . . . . 8 . . . . . . . . . Kick . | . . . . . . . . . . . . . . . . Crush 11 | . . . . . . . . . . 1 8 . . 2 . Escape Stasis 15 | . . . . . . 13 . . . . 2 . . . . Rewire 10 | . . . . . . . . . . . 1 . . 7 2 Trap . | . . . . . . . . . . . . . . . . Miscellaneous 1 | . . . . . . . . . . . . . . . 1 Route ------- -11/Scrapyard -10/Materials (discovered 3 exits: *Mat / *Min / *Sub) -10/Mines (discovered 4 exits: *Mat x2 / *Exi / *Sub) -10/Subcaves (discovered 3 exits: *Mat x2 / *Rec) -8/Recycling (discovered 2 exits: *Fac / *Scr) -8/Scraptown -6/Factory (discovered 8 exits: *Fac x4 / *Low x2 / *Ext x2) -6/Extension (discovered 2 exits: *Fac / *Cet) -6/Cetus (discovered 2 exits: *Fac / *Arc) -6/Archives (discovered 3 exits: *Fac / *Hub x2) -6/Hub_04(d) (discovered 4 exits: *Fac x4) -5/Factory (discovered 6 exits: *Fac x4 / *Upp x2) -5/Upper Caves -5/Upper Caves (discovered 3 exits: *Fac x2 / *Zhi) -5/Zhirov -4/Proximity Caves (discovered 1 exit: *Fac) History --------- Turn | Location | Event 24 | -11/Scrapyard | Identified exit to Materials 24 | -11/Scrapyard | Discovered exit to Materials (range 15) 100 | -11/Scrapyard | Entered Materials 100 | -10/Materials | Evolved 1 slot: Utility x1 210 | -10/Materials | Identified exit to Materials 210 | -10/Materials | Discovered exit to Materials (range 7) 306 | -10/Materials | Build established: Hacker-Mutant 499 | -10/Materials | Identified exit to Mines 499 | -10/Materials | Discovered exit to Mines (range 12) 1445 | -10/Materials | Identified exit to Subcaves 1445 | -10/Materials | Discovered exit to Subcaves (range 6) 1465 | -10/Materials | Entered Mines 1490 | -10/Mines | Found the Drone Emporium 1498 | -10/Mines | Found Prototype Device 1498 | -10/Mines | Identified Splice Drone Bay 1882 | -10/Mines | Discovered exit to Materials (range 9) 2013 | -10/Mines | Deemed a non-threat by the Exiles lab entrance 2013 | -10/Mines | Identified exit to Exiles 2013 | -10/Mines | Discovered exit to Exiles (range 5) 2184 | -10/Mines | Discovered exit to Materials (range 13) 2232 | -10/Mines | Assisted by bots powering up and referring to "LRC-V3" 2704 | -10/Mines | Discovered exit to Subcaves (range 6) 2721 | -10/Mines | Entered Subcaves 2721 | -10/Subcaves | Accompanied by 5 allies 2722 | -10/Subcaves | Approached by a straggling Scientist 2726 | -10/Subcaves | Led the pair of lost Derelicts to an unsafe place 2733 | -10/Subcaves | Learned Materials terminal intel 2769 | -10/Subcaves | Learned location of Zion (-7) 2769 | -10/Subcaves | Met a Zionite searching for "candidates" 2773 | -10/Subcaves | Identified exit to Materials 2773 | -10/Subcaves | Discovered exit to Materials (range 9) 2812 | -10/Subcaves | Shifting Twisted Machinery released Flamer 2813 | -10/Subcaves | Shifting Twisted Machinery released Mak. Spear 2820 | -10/Subcaves | Shifting Twisted Machinery released Sub. Monowheel 2841 | -10/Subcaves | Shifting Twisted Machinery released Battle Cannon 2944 | -10/Subcaves | Visited 4L-MR0's lab 2986 | -10/Subcaves | Found Cargo Legs 2988 | -10/Subcaves | Attached Cargo Legs, gained temporary slots: Utility x2 3237 | -10/Subcaves | Build established: Scavenger-Skirmisher 3520 | -10/Subcaves | Discovered exit to Materials (range 15) 3803 | -10/Subcaves | Shifting Twisted Machinery released Mak. Light Armor Plating 5686 | -10/Subcaves | A swath of the cavern ceiling suddenly collapsed 5827 | -10/Subcaves | A swath of the cavern ceiling suddenly collapsed 5896 | -10/Subcaves | Identified exit to Recycling 5896 | -10/Subcaves | Discovered exit to Recycling (range 13) 6170 | -10/Subcaves | Build established: Hacker-Skirmisher 6458 | -10/Subcaves | Found SUBCON Basin 6873 | -10/Subcaves | Entered Recycling 6874 | -8/Recycling | Met a Zionite searching for Scraptown 7066 | -8/Recycling | Core integrity fell below 50% 7097 | -8/Recycling | Identified exit to Factory 7097 | -8/Recycling | Discovered exit to Factory (range 4) 7308 | -8/Recycling | Scanned before Scraplab entrance 7330 | -8/Recycling | Identified exit to Scraptown 7330 | -8/Recycling | Discovered exit to Scraptown (range 11) 7336 | -8/Recycling | Entered Scraplab 8676 | -8/Recycling | Entered Scraptown 8890 | -8/Scraptown | Visited Assassins FH 8918 | -8/Scraptown | Visited Symbiants 8948 | -8/Scraptown | Visited TADAMA 8968 | -8/Scraptown | Visited Bundlers 8994 | -8/Scraptown | Heard Great Nut preacher, LISTEN AND RECITE! 9121 | -8/Scraptown | Visited Cave Peace 9159 | -8/Scraptown | Visited Cyclists 9317 | -8/Scraptown | Discovered exit to Factory (range 11) 9744 | -8/Scraptown | Build established: Hacker-Mutant 9809 | -8/Scraptown | Entered Factory 9809 | -6/Factory | Evolved 8 slots: Power x1, Propulsion x2, Utility x5 9867 | -6/Factory | Identified exit to Lower Caves 9867 | -6/Factory | Discovered exit to Lower Caves (range 6) 10515 | -6/Factory | Garrison activated, responded to threat 11855 | -6/Factory | Identified exit to Extension 11855 | -6/Factory | Discovered exit to Extension (range 6) 12470 | -6/Factory | Identified exit to Factory 12470 | -6/Factory | Discovered exit to Factory (range 12) 13086 | -6/Factory | Lost 3 parts (1p1n1u) 13735 | -6/Factory | Fabricated Mak. System Restoration Module (x2) 14250 | -6/Factory | Spotted B-75 Beast 14294 | -6/Factory | Destroyed B-75 Beast 14636 | -6/Factory | Discovered exit to Factory (range 10) 14781 | -6/Factory | Repaired Lyr. Light Armor Plating 14826 | -6/Factory | Repaired EM Disruption Field 14859 | -6/Factory | Repaired Huge Storage Unit 15543 | -6/Factory | Repaired Imp. Antigrav System 15566 | -6/Factory | Repaired Imp. Medium Armor Plating 16437 | -6/Factory | Garrison activated, responded to threat 16930 | -6/Factory | Discovered exit to Factory (range 15) 17040 | -6/Factory | Discovered exit to Lower Caves (range 8) 17182 | -6/Factory | Repaired Cryofiber Web 17425 | -6/Factory | Fabricated Mak. System Restoration Module (x2) 19411 | -6/Factory | Fabricated Hvy. Treads (x1) 19547 | -6/Factory | Fabricated Hvy. Treads (x1) 19906 | -6/Factory | Discovered exit to Factory (range 15) 20572 | -6/Factory | Found Prototype Launcher 20572 | -6/Factory | Identified Scatter Rocket Array 20979 | -6/Factory | Discovered exit to Extension (range 16) 21151 | -6/Factory | Fabricated Imp. System Restoration Module (x2) 21274 | -6/Factory | Entered Extension 21336 | -6/Extension | Rescued a captive Derelict 21337 | -6/Extension | Rescued a captive Derelict 21378 | -6/Extension | Rescued a captive Derelict 21379 | -6/Extension | Rescued a captive Derelict 21380 | -6/Extension | Rescued a captive Derelict 21381 | -6/Extension | Rescued a captive Derelict 21418 | -6/Extension | Rescued a captive Derelict 21429 | -6/Extension | Rescued a captive Derelict 21586 | -6/Extension | Rescued a captive Derelict 21719 | -6/Extension | Rescued a captive Derelict 21721 | -6/Extension | Rescued a captive Derelict 21779 | -6/Extension | Rescued A7 21940 | -6/Extension | Rescued a captive Derelict 22108 | -6/Extension | Discovered exit to Factory (range 10) 22110 | -6/Extension | Identified exit to Cetus 22110 | -6/Extension | Discovered exit to Cetus (range 6) 22155 | -6/Extension | Entered Cetus 22155 | -6/Cetus | Accompanied by 8 allies (A7) 22160 | -6/Cetus | Acquired a Cetus Manufacturing Module code from A7 22176 | -6/Cetus | Spotted Cetus Guard 22176 | -6/Cetus | Spotted Cetus Guard 22179 | -6/Cetus | Allies destroyed Cetus Guard 22180 | -6/Cetus | Spotted Cetus Guard 22186 | -6/Cetus | Spotted Cetus Guard 22189 | -6/Cetus | Destroyed Cetus Guard 22194 | -6/Cetus | Allies destroyed Cetus Guard 22207 | -6/Cetus | Destroyed Cetus Guard 22340 | -6/Cetus | Started Cetus Manufacturing Module 22365 | -6/Cetus | Manufactured an Enhanced Grunt 22390 | -6/Cetus | Manufactured an Enhanced Grunt 22415 | -6/Cetus | Manufactured an Enhanced Grunt 22440 | -6/Cetus | Manufactured an Enhanced Grunt 22465 | -6/Cetus | Manufactured an Enhanced Grunt 22527 | -6/Cetus | Cetus Manufacturing Module disabled 22537 | -6/Cetus | Build established: Scavenger-Mutant 22593 | -6/Cetus | Identified exit to Archives 22593 | -6/Cetus | Discovered exit to Archives (range 16) 22636 | -6/Cetus | Spotted Cetus Guard 22636 | -6/Cetus | Spotted Cetus Guard 22638 | -6/Cetus | Spotted Cetus Guard 22639 | -6/Cetus | Spotted Cetus Guard 22645 | -6/Cetus | Allies destroyed Cetus Guard 22650 | -6/Cetus | Destroyed Cetus Guard 22653 | -6/Cetus | Destroyed Cetus Guard 22660 | -6/Cetus | Allies destroyed Cetus Guard 22687 | -6/Cetus | Lost 6 allies 22737 | -6/Cetus | Found Prototype Device 22737 | -6/Cetus | Identified Exp. Thermal Shield 22820 | -6/Cetus | Discovered exit to Factory (range 15) 22832 | -6/Cetus | Met Revision 17 22905 | -6/Cetus | Security sweep announced 22956 | -6/Cetus | Entered Archives 22956 | -6/Archives | Accompanied by 4 allies (A7) 23013 | -6/Archives | Identified exit to Hub_04(d) 23013 | -6/Archives | Discovered exit to Hub_04(d) (range 16) 23086 | -6/Archives | Discovered exit to Hub_04(d) (range 15) 23111 | -6/Archives | Discovered exit to Factory (range 16) 23181 | -6/Archives | Entered Hub_04(d) 23181 | -6/Hub_04(d) | Accompanied by 3 allies 23498 | -6/Hub_04(d) | Discovered exit to Factory (range 4) 23653 | -6/Hub_04(d) | Discovered exit to Factory (range 7) 24061 | -6/Hub_04(d) | Discovered exit to Factory (range 7) 24324 | -6/Hub_04(d) | Discovered exit to Factory (range 8) 25080 | -6/Hub_04(d) | Network Hub disabled 25094 | -6/Hub_04(d) | Spotted Lightning 25098 | -6/Hub_04(d) | Spotted Lightning 25104 | -6/Hub_04(d) | Spotted Lightning 25113 | -6/Hub_04(d) | Destroyed Lightning 25132 | -6/Hub_04(d) | Core integrity fell below 50% 25178 | -6/Hub_04(d) | Spotted Lightning 25180 | -6/Hub_04(d) | Spotted Lightning 25182 | -6/Hub_04(d) | Destroyed Lightning 25190 | -6/Hub_04(d) | System corruption reached 10% 25201 | -6/Hub_04(d) | Spotted Lightning 25222 | -6/Hub_04(d) | Found Prototype Energy Cannon 25229 | -6/Hub_04(d) | Found Prototype Device 25229 | -6/Hub_04(d) | Identified Exp. EM Shield 25232 | -6/Hub_04(d) | Network Hub disabled 25396 | -6/Hub_04(d) | Network Hub disabled 25399 | -6/Hub_04(d) | Spotted Lightning 25399 | -6/Hub_04(d) | Spotted Lightning 25450 | -6/Hub_04(d) | Spotted Lightning 25538 | -6/Hub_04(d) | Disrupted transfer network 25559 | -6/Hub_04(d) | Destroyed Lightning 25570 | -6/Hub_04(d) | Destroyed Lightning 25584 | -6/Hub_04(d) | Found Prototype Device 25586 | -6/Hub_04(d) | Identified Exp. Phase Shifter 25639 | -6/Hub_04(d) | Destroyed Lightning 25662 | -6/Hub_04(d) | Destroyed Lightning 25667 | -6/Hub_04(d) | Destroyed Lightning 25699 | -6/Hub_04(d) | Found Exp. Phase Shifter 25724 | -6/Hub_04(d) | Found Exp. EM Shield 25834 | -6/Hub_04(d) | Destroyed Lightning 25981 | -6/Hub_04(d) | First assault squad dispatched 26134 | -6/Hub_04(d) | Destroyed Lightning 26707 | -6/Hub_04(d) | Network Hub disabled 26871 | -6/Hub_04(d) | Entered Factory 26871 | -5/Factory | Evolved 2 slots: Propulsion x1, Utility x1 26934 | -5/Factory | Found Imp. Powered Armor 27263 | -5/Factory | Repaired Broken Exp. Heat Sink 27401 | -5/Factory | Identified exit to Factory 27467 | -5/Factory | Allied Derelicts emerged from ambush trap array 27603 | -5/Factory | Lost 3 allies 27621 | -5/Factory | Identified EMDS 27712 | -5/Factory | Garrison activated, responded to threat 27826 | -5/Factory | Tech Extrapolator generated special schematic: Deep Structural Scanner 28132 | -5/Factory | Repaired Neutron Cannon 28187 | -5/Factory | Repaired Centrium Heavy Treads 28706 | -5/Factory | Identified exit to Upper Caves 28706 | -5/Factory | Discovered exit to Upper Caves (range 4) 31938 | -5/Factory | Build established: Hacker-Mutant 32483 | -5/Factory | Fabricated Adv. Signal Interpreter? 32593 | -5/Factory | Fabricated Imp. System Restoration Module? 32861 | -5/Factory | Fabricated Centrium Heavy Treads? 32996 | -5/Factory | Fabricated Enh. Gauss Cannon (x2) 33225 | -5/Factory | Fabricated Exp. EM Shield (x1) 33299 | -5/Factory | Tech Extrapolator generated special schematic: Machine Rigger 34486 | -5/Factory | Repaired Imp. Cryofiber Web 34544 | -5/Factory | Repaired Enh. Gauss Cannon 34791 | -5/Factory | Core integrity fell below 50% 35625 | -5/Factory | Destroyed 7 combat bots 35686 | -5/Factory | Repaired Centrium Heavy Treads 35817 | -5/Factory | Spotted B-75 Beast 35873 | -5/Factory | Repaired Exp. Heat Sink 35938 | -5/Factory | Discovered exit to Upper Caves (range 10) 36090 | -5/Factory | Fabricated Imp. System Restoration Module (x2) 36675 | -5/Factory | Repaired F-cell Engine 36852 | -5/Factory | Found Imp. Powered Armor 37176 | -5/Factory | Fabricated Centrium Heavy Treads (x1) 37382 | -5/Factory | Fabricated Centrium Medium Armor Plating (x1) 37403 | -5/Factory | Unchained authorized (GL-D0S) 41005 | -5/Factory | Entered Upper Caves 41041 | -5/Upper Caves | Attracted the attention of an 0b10 checkpoint 42003 | -5/Upper Caves | Identified exit to Upper Caves 42003 | -5/Upper Caves | Discovered exit to Upper Caves (range 13) 42601 | -5/Upper Caves | Learned Factory emergency access door positions 44567 | -5/Upper Caves | Entered another Upper Caves area 44814 | -5/Upper Caves | Learned 12 Factory zone layouts 44870 | -5/Upper Caves | Identified exit to Zhirov 44870 | -5/Upper Caves | Discovered exit to Zhirov (range 19) 45224 | -5/Upper Caves | Encountered a Warlord checkpoint 45431 | -5/Upper Caves | Discovered exit to Factory (range 20) 45522 | -5/Upper Caves | Build established: Hacker-Skirmisher 45776 | -5/Upper Caves | 99-TNT showed up to help 45778 | -5/Upper Caves | 99-TNT revealed a hidden path 45821 | -5/Upper Caves | Attracted the attention of an 0b10 outpost 45889 | -5/Upper Caves | Spotted B-75 Beast 45911 | -5/Upper Caves | Destroyed 7 combat bots 45916 | -5/Upper Caves | Core integrity fell below 20% 46003 | -5/Upper Caves | Lost 9 parts (2p5u2w) 46038 | -5/Upper Caves | Lost 3 allies 46175 | -5/Upper Caves | Build established: Hacker-Mutant 46176 | -5/Upper Caves | Entered Zhirov 46176 | -5/Zhirov | Accompanied by 6 allies 46176 | -5/Zhirov | Identified exit to Proximity Caves 46176 | -5/Zhirov | Discovered exit to Proximity Caves (range 3) 46205 | -5/Zhirov | Met Zhirov 46253 | -5/Zhirov | Learned location of Quarantine (-2) 46253 | -5/Zhirov | Learned location of Testing (-3) 46253 | -5/Zhirov | Learned location of Command (-1) 46285 | -5/Zhirov | Zhirov requested help retrieving the SGEMP Prototype 46320 | -5/Zhirov | Found Alien Artifact 46321 | -5/Zhirov | Identified Integrated Dissipator 46321 | -5/Zhirov | Installed Integrated Dissipator, increased core heat dissipation (+20) 46342 | -5/Zhirov | Found Alien Artifact 46596 | -5/Zhirov | Entered Proximity Caves 47031 | -4/Proximity Caves | Learned Research emergency access door positions 48282 | -4/Proximity Caves | Discovered exit to Factory (range 15) 48297 | -4/Proximity Caves | Acquired the password to a Derelict Tinkerer's latest research 48323 | -4/Proximity Caves | Found Prototype Special Weapon 48395 | -4/Proximity Caves | Caught by Unaware searching for contraband prototypes 48407 | -4/Proximity Caves | Destroyed by P-70 Sage with High-powered Shock Rifle Last Messages --------------- 48386_ Slug penetrates X-62 Marksman. 48386_ Slug penetrates Wall. 48387_ Splice Drone retrieved by Splice Drone Bay (repair cost: 2). 48387_ Splice Drone injecting X-62 Marksman... Initiated overload sequence, T-5 to critical power. 48387_ Splice Drone retrieved by Splice Drone Bay (repair cost: 4). 48388_ Slug penetrates Wall. 48388_ Slug penetrates Splice Drone. 48388_ Splice Drone retrieved by Splice Drone Bay (repair cost: 2). 48390_ Splice Drone retrieved by Splice Drone Bay (repair cost: 7). 48390_ Splice Drone retrieved by Splice Drone Bay (repair cost: 11). 48395_ P-70 Sage: "CONFIRMED SUSPICIOUS DERELICT. COMMENCE PROTOTYPE CONTRABAND SEARCH." Map ----- +----------------------------------------------------+ | #?#????????????????#???????????????????#?????????? | | ?????????????#???#??????????????????#????????????? | | ??????????????????????#?????????#?????#??????????? | | ????????????#???????#???????#????????????????????? | | ?##?????????????#??####?#???#??????#?#????#??????? | | ?????#?????????#####X"##??????#??????????????????? | | ???????????#?????# ! ""##????#??????#????????????? | | ????????????#????### "#?#?????????##????????????? | | ?????#####???????# ###?#?#???????????????????? | | ???### #???????#####"# ###?????????????????#???? | | ?#?# ##???#?## ## ##??????? ?????#?#????? | | ??## #???#### #????????? ?? #?????? | | ### #??## ### ##?#?####????? ###??? | | ##?# ### ###?## ##????? ##??? | | ### ##c x #### ##??? ##?? | | ## ## ##?? #?? | | ## ##?? #?? | | ## ###### #???# #?? | | #### ## ##????### ##???# #?? | | ##??####### #?#???#?## #???## ??? | | ##???????#?##### #####??#?# #???## #???? | | ##?????#???##?### #?# ##???# ##### #????? | | ####??########??#??# ### #?### #????? | | #?????# ????## p ####h #????? | | ??????# ? ????#?## < x #????? | | ??????# #?????? ????## @ # ###??? | | #?????# #?????????#??############ ## #????? | | ####### ##???? ????#??????#?#?# #### #????? | | #??#?? ??????????#??## #??## #????? | | ##????????????##?#???# #???## ##????? | | ######## #???? ???????#?#??? ##????###?????? | | ####### #??#??? ??g??????? #????????????#? | | ##?#????s ?????? ### #?????????????? | | ### Y #???##??## ?????#???????? | | ###### #????????## ?????????????? | | ####### #?????????## ???#?????????? | | ## ## #?????????## ?????????? ??? | | ### ##### ?????????? ?????????????? | | ##?## #?????? ?????????? ???? ?? ?????? | | # #???? #??????? ???????? ??????? ?????? | | ## ##??#? #??????????? ??? ??????#??????? | | ## #### #??????????????????????????????? | | ##? #??#???????????????????????????? | | =% #?? ? ##?#???????#??????????#?????????? | | "#####?? ######???????????????????????????????? | | #####???#####????#?#????????????????????????????? | | ##?????#?#?????#???#?????????????????????????????? | | #???######??#????????????????????????????????????? | | ####?#?##?#?????#??#?????????????????????????????? | | #?????##????????#????????????????????????????????? | +----------------------------------------------------+ Best States ------------- Heat Dissipation 199 Energy Generation 57 Energy Capacity 720 Matter Stores 300 Matter Capacity 300 Sight Range 16 Robot Scan Range 16 Terrain Scan Range 20 Terrain Scan Density 210 Power Amplification 30 Base Temperature (-) 150 EM Shielding 2 Corruption Block 4 Armor Coverage 825 Resistance: KI 35 Resistance: TH 65 Resistance: EX 85 Resistance: EM 100 Resistance: I 35 Resistance: S 35 Resistance: P 35 Core Shielding 40 Phase Shifting 20 Evasion (%) 59 Targeting Accuracy 20 Core Analysis 6 Recoil Reduction 5 Particle Charging 25 Offensive Hacking 40 Defensive Hacking 10 Authchip Count 2 Item Schematics ----------------- Gauss Rifle | -8/Recycling | Hacked Mak. System Restoration Module | -6/Factory | Scanalyzed Multitool | -6/Factory | Scanalyzed Adv. Sensor Array | -6/Factory | Hacked Imp. Force Field | -6/Factory | Hacked Imp. Remote Force Field | -6/Factory | Hacked Exp. Melee Analysis Suite | -6/Factory | Hacked Hacking Suite | -6/Factory | Scanalyzed System Shield | -6/Factory | Scanalyzed Hvy. Plasma Cannon | -6/Factory | Scanalyzed Thermal Defense Suite | -6/Factory | Scanalyzed Corruption Screen | -6/Factory | Scanalyzed EM Shield | -6/Factory | Hacked Dispersion Rifle | -6/Factory | Hacked Antigrav System | -6/Factory | Hacked Hvy. Treads | -6/Factory | Hacked Adv. Focal Shield | -6/Factory | Hacked Force Field | -6/Factory | Hacked Adv. Signal Interpreter | -6/Factory | Hacked Imp. Dynamic Insulation System | -6/Factory | Hacked Adv. System Shield | -6/Factory | Scanalyzed Imp. System Restoration Module | -6/Factory | Scanalyzed Phase Cannon | -6/Extension | Hacked Imp. Trap Scanner | -6/Extension | Hacked Centrium Wheel | -6/Hub_04(d) | Hacked Lyr. Heavy Armor Plating | -6/Hub_04(d) | Hacked Lrn. Terrain Scanner | -6/Hub_04(d) | Hacked Adv. Transmission Jammer | -6/Hub_04(d) | Hacked Mak. Power Source | -5/Factory | Extrapolated Imp. Hacking Suite | -5/Factory | Scanalyzed Weapon Mount | -5/Factory | Scanalyzed Adv. ECM Suite | -5/Factory | Scanalyzed Adv. Datajack | -5/Factory | Scanalyzed Exp. Phase Shifter | -5/Factory | Scanalyzed Exp. EM Shield | -5/Factory | Scanalyzed Exp. Thermal Shield | -5/Factory | Scanalyzed Centrium Medium Armor Plating | -5/Factory | Scanalyzed Imp. Powered Armor | -5/Factory | Scanalyzed Centrium Heavy Treads | -5/Factory | Scanalyzed Adv. Particle Charger | -5/Factory | Scanalyzed Adv. Power Amplifier | -5/Factory | Scanalyzed Adv. Terrain Scanner | -5/Factory | Scanalyzed Imp. Plasma Cutter | -5/Factory | Scanalyzed Imp. Component Analysis Suite | -5/Factory | Scanalyzed Mak. Coolant Network | -5/Factory | Extrapolated Deep Structural Scanner | -5/Factory | Extrapolated Mak. Hacking Suite | -5/Factory | Extrapolated Mak. Terrain Scanner | -5/Factory | Extrapolated Power Amplifier | -5/Factory | Scanalyzed Hvy. Gatling Laser | -5/Factory | Scanalyzed Power Sword | -5/Factory | Scanalyzed Hvy. Beamcaster | -5/Factory | Extrapolated Mak. System Shield | -5/Factory | Extrapolated Adv. Thermal Shield | -5/Factory | Hacked Com. HERF Cannon | -5/Factory | Hacked 0b10 Decoder Chip [Skirmisher] | -5/Factory | Extrapolated Mak. Thermal Plating | -5/Factory | Extrapolated Adv. Cooling System | -5/Factory | Scanalyzed Imp. Cryofiber Web | -5/Factory | Scanalyzed Adv. Hacking Suite | -5/Factory | Scanalyzed Adv. Shield Generator | -5/Factory | Scanalyzed Enh. Gauss Cannon | -5/Factory | Scanalyzed Arm. Heavy Treads | -5/Factory | Hacked Imp. Heavy Treads | -5/Factory | Hacked Humpback | -5/Factory | Extrapolated Mak. Transmission Jammer | -5/Factory | Extrapolated Mak. Medium Armor Plating | -5/Factory | Extrapolated Mak. Ablative Armor | -5/Factory | Extrapolated Machine Rigger | -5/Factory | Extrapolated Tactical Coordination Suite | -5/Factory | Extrapolated Cld. Plasma Rifle | -5/Factory | Hacked Hvy. Phase Cannon | -5/Factory | Hacked Variable Charge Gun | -5/Factory | Hacked Point Defense System | -5/Factory | Hacked Imp. Phase Shifter | -5/Factory | Hacked Imp. Corruption Screen | -5/Factory | Scanalyzed Assault Drone Bay | -5/Zhirov | Free Exp. Heat Sink | -5/Zhirov | Free Exp. Optical Array | -5/Zhirov | Free Imp. Arc Thrower | -5/Zhirov | Free Robot Schematics ------------------ B-36 Bruiser | -8/Recycling | Hacked G-50 Soldier | -6/Extension | Hacked M-22 Extractor | -6/Hub_04(d) | Hacked Fabricated ------------ Mak. System Restoration Module | x2 | -6/Factory Mak. System Restoration Module | x2 | -6/Factory Hvy. Treads | x1 | -6/Factory Hvy. Treads | x1 | -6/Factory Imp. System Restoration Module | x2 | -6/Factory Adv. Signal Interpreter | x2 | -5/Factory Imp. System Restoration Module | x2 | -5/Factory Centrium Heavy Treads | x1 | -5/Factory Enh. Gauss Cannon | x2 | -5/Factory Exp. EM Shield | x1 | -5/Factory Imp. System Restoration Module | x2 | -5/Factory Centrium Heavy Treads | x1 | -5/Factory Centrium Medium Armor Plating | x1 | -5/Factory Repaired ---------- Lyr. Light Armor Plating | 12% | -6/Factory EM Disruption Field | 29% | -6/Factory Huge Storage Unit | 36% | -6/Factory Imp. Antigrav System | 10% | -6/Factory Imp. Medium Armor Plating | 32% | -6/Factory Cryofiber Web | 16% | -6/Factory Exp. Heat Sink | 81% | -5/Factory | Broken Neutron Cannon | 35% | -5/Factory Centrium Heavy Treads | 37% | -5/Factory Imp. Cryofiber Web | 21% | -5/Factory Enh. Gauss Cannon | 33% | -5/Factory Centrium Heavy Treads | 45% | -5/Factory Exp. Heat Sink | 20% | -5/Factory F-cell Engine | 34% | -5/Factory Studied --------- None Alien Tech Used ----------------- Integrated Dissipator Achievements -------------- 404 Immobile And Lovin' It Professional Mechanic The Better Part Of Valor Challenges ------------ None Game ------ Seed MeleeExplosiveScrap Manual? 0 Play Time 04:03:07 Cumulative 305.2 hours Start 2026.01.22 @ 11:34:53 End 2026.01.22 @ 15:39:38 Sessions 1 Manual Loads 0 Difficulty Explorer Special Mode None Game No. 469 Rogue 0 Adventurer 0 Explorer 469 Win Type - Total 0 Types 0/0/0/0/0/0/0/0/0/0 Lore% 76 Gallery% 70 Achievement% 56 Wizard Run 0 Options --------- Layout 1 ASCII 0 Keyboard 0 Movement Mouse Keybinds 1 Fullscreen 1 Font 24/Smallcaps Map View 50x35 Zoom Use 0% Tactical HUD 1 Map Filters NONE Filters NONE Steam 1 RUN: babf0def-ff74-4f14-b926-36dfbec3cf63